bitfinex/quotes_ETHUSD_20240729
["timestamp","ask_amount","ask_price","bid_price","bid_amount"]
[1722255362905,2.36567,3381.7,3381.5,0.66701996]
[1722255363122,2.36567,3381.7,3381.2,2.3069]
[1722255363522,2.36558,3381.9,3381.2,2.3069]
[1722255363727,2.36561,3381.8,3381.2,2.3069]
[1722255363927,2.36561,3381.8,3381.3,0.467299]
[1722255364144,2.36568,3381.7,3381.3,0.467299]
[1722255364471,2.36522,3382.4,3380.9,9.65621]
[1722255364472,2.36589,3381.4,3380.9,7.29]
[1722255364768,2.36589,3381.4,3380.8,2.3764]
[1722255364769,2.36589,3381.4,3380.8,4.74269]
[1722255364906,0.03235233,3381.3,3380.8,4.74269]
[1722255365310,0.03235233,3381.3,3380.8,2.3764]
[1722255365311,2.39831233,3381.3,3380.8,2.3764]
[1722255365633,2.36609,3381.1,3380.6,12.12]
[1722255365814,2.36618,3381.0,3380.6,12.12]
[1722255366008,2.36623,3380.9,3380.6,12.12]
[1722255366514,2.36631,3380.8,3380.6,12.12]
[1722255367539,2.36617,3381.0,3380.6,12.12]
[1722255367742,2.36606,3381.2,3380.6,12.12]
[1722255368415,2.36583,3381.5,3380.6,12.12]
[1722255368620,2.36595,3381.3,3380.6,12.12]
[1722255368825,2.36595,3381.3,3380.5,7.29]
[1722255369030,0.03232182,3381.2,3380.5,8.729968]
[1722255369268,2.36595,3381.3,3380.5,8.729968]
[1722255369630,2.39825707,3381.2,3380.5,8.729968]
[1722255369838,2.36603,3381.2,3380.5,8.729968]
[1722255370058,2.36603,3381.2,3380.6,1.3472938]
[1722255370464,2.36593,3381.4,3380.6,1.3472938]
[1722255370677,0.03219377,3381.1,3380.6,1.3472938]
[1722255370845,2.36583,3381.5,3380.6,1.3472938]
[1722255370846,2.36596,3381.3,3380.6,1.3472938]
[1722255371173,0.03212889,3381.0,3380.6,1.3472938]
[1722255371382,2.36596,3381.3,3380.7,1.10037938]
[1722255371671,0.03212919,3381.2,3380.7,1.10037938]
[1722255371870,2.36596,3381.3,3380.7,1.10037938]
[1722255372079,2.4322,3381.4,3380.5,7.29]
[1722255372230,2.36642,3380.7,3380.5,7.29]
[1722255372578,0.58209761,3381.2,3380.0,5.19659091]
[1722255372579,2.36648,3380.6,3380.0,5.19659091]
[1722255372731,2.36648,3380.6,3380.0,6.20273]
[1722255372926,0.03167497,3380.5,3380.0,6.20273]
[1722255373233,2.36638,3380.7,3380.0,6.20273]
[1722255373539,2.36644,3380.6,3380.0,6.20273]
[1722255373746,2.39820181,3380.6,3380.0,6.20273]
[1722255374042,2.39820181,3380.6,3380.1,1.106751]
[1722255374362,2.39821181,3380.6,3380.1,1.106751]
[1722255374535,2.39821181,3380.6,3380.0,5.19659091]
[1722255374536,2.36652,3380.5,3380.0,5.19659091]
[1722255374872,0.03155332,3380.4,3380.0,5.19659091]
[1722255375247,2.36637,3380.7,3380.0,5.19659091]
[1722255375447,0.03148841,3380.3,3380.0,5.19659091]
[1722255375749,2.36644,3380.6,3380.0,6.439429]
[1722255375967,0.0314235,3380.2,3380.0,6.439429]
[1722255376178,2.36623,3380.9,3380.0,6.439429]
[1722255376483,2.36637,3380.7,3380.0,5.19659091]
[1722255376833,0.03165153,3380.6,3380.0,5.19659091]
[1722255377060,0.03165153,3380.6,3380.1,0.05916112]
[1722255377378,3.0,3381.0,3380.1,0.05916112]
[1722255377548,0.03162064,3380.5,3380.1,2.42592112]
[1722255377744,2.36602,3381.2,3380.2,3.3866612]
[1722255377942,2.36602,3381.2,3380.4,2.36652]
[1722255378149,2.39811805,3381.1,3380.5,0.0591552]
[1722255379136,0.03198805,3381.1,3380.5,0.0591552]
[1722255379355,2.36613,3381.1,3380.3,0.05915521]
[1722255379555,2.39812554,3381.0,3380.3,1.10092473]
[1722255379905,2.36631,3380.8,3380.2,1.0199512]
[1722255380259,0.03177087,3380.7,3380.2,1.0199512]
[1722255380455,0.03177087,3380.7,3380.0,5.19659091]
[1722255380660,2.36651,3380.6,3380.0,5.19659091]
[1722255380935,2.39818317,3380.6,3380.0,5.19659091]
[1722255381600,0.03167317,3380.6,3380.0,5.19659091]
[1722255382416,0.03167317,3380.6,3380.0,7.56345091]
[1722255382725,2.36611,3381.1,3380.1,3.41894785]
[1722255382927,0.03164811,3380.5,3380.2,2.4575]
[1722255383093,2.36617,3381.0,3380.2,2.4575]
[1722255383094,2.36617,3381.0,3380.3,0.0591589]
[1722255383271,0.03156264,3380.4,3380.3,0.92978878]
[1722255383477,3.0,3381.1,3380.3,0.0591589]
[1722255383686,0.03156264,3380.4,3380.3,2.4258089]
[1722255383890,2.36604,3381.2,3380.3,3.53310339]
[1722255384105,0.03156264,3380.4,3380.3,3.53310339]
[1722255384317,2.36609,3381.1,3380.3,3.53310339]
[1722255384621,2.36627,3380.9,3380.4,0.73837038]
[1722255384818,2.36627,3380.9,3380.3,1.16645339]
[1722255385003,2.36627,3380.9,3380.3,1.10729449]
[1722255385323,2.36621,3381.0,3380.3,1.10729449]
[1722255385493,3.0,3381.3,3380.2,2.4575]
[1722255385695,3.0,3381.3,3380.0,5.19659091]
[1722255385696,2.36636,3380.8,3380.0,5.19659091]
[1722255386028,2.36619,3381.0,3380.0,7.56343091]
[1722255386191,2.36631,3380.8,3380.0,7.56343091]
[1722255386527,2.36631,3380.8,3380.1,0.99304209]
[1722255386926,2.36619,3381.0,3380.1,0.99304209]
[1722255387108,2.36604,3381.2,3380.3,2.36665]
[1722255387313,2.36609,3381.1,3380.4,0.0591552]
[1722255387979,2.36609,3381.1,3380.4,2.4257252]
[1722255388477,2.36609,3381.1,3380.5,0.0591552]
[1722255390221,3.0,3381.3,3380.7,2.36635]
[1722255390398,2.36578,3381.6,3380.9,2.36622]
[1722255390602,2.3656,3381.8,3380.9,2.84539794]
[1722255390840,2.3656,3381.8,3381.0,2.42523851]
[1722255391001,2.36569,3381.7,3381.0,0.05914851]
[1722255391208,0.473129,3381.6,3381.0,0.05914851]
[1722255391431,2.36569,3381.7,3381.0,2.42530851]
[1722255391794,2.36569,3381.7,3381.1,0.05914663]
[1722255392191,3.0,3381.9,3381.1,0.05914663]
[1722255392435,5.36557,3381.9,3381.1,0.05914663]
[1722255392731,2.36557,3381.9,3381.2,2.3601]
[1722255393048,2.36535,3382.2,3381.2,2.3601]
[1722255393049,2.36533,3382.2,3381.4,2.36584]
[1722255393210,2.36533,3382.2,3381.5,0.05913914]
[1722255393407,6.88160577,3382.6,3381.6,2.36571]
[1722255393720,6.88160577,3382.6,3381.4,2.36584]
[1722255393721,0.30898183,3382.6,3381.4,2.36584]
[1722255393894,2.36541,3382.1,3381.2,12.01609]
[1722255394096,2.36541,3382.1,3381.3,3.51726178]
[1722255394336,2.39674646,3382.0,3381.2,9.6501]
[1722255394535,2.36551,3382.0,3381.2,9.6501]
[1722255394837,0.03119224,3381.9,3381.2,12.01611]
[1722255395196,2.36548,3382.0,3381.2,12.01611]
[1722255395401,0.03112738,3381.8,3381.2,9.6501]
[1722255395710,0.03106252,3381.7,3381.2,12.0096493]
[1722255396233,2.36548,3382.0,3381.2,12.0096493]
[1722255396430,2.36553,3381.9,3381.2,12.0096493]
[1722255396637,0.03118496,3381.9,3381.2,14.3755993]
[1722255396795,2.39671496,3381.9,3381.3,0.47916066]
[1722255397240,0.03118496,3381.9,3381.3,0.47916066]
[1722255397442,0.03118496,3381.9,3381.4,2.36587]
[1722255397741,0.03114683,3381.8,3381.7,2.36567]
[1722255397902,5.15135087,3382.6,3381.5,2.36576]
[1722255397903,6.14342124,3382.5,3381.5,2.36576]
[1722255398344,6.14342124,3382.5,3381.6,2.36573]
[1722255398498,0.03148245,3382.4,3381.7,2.36567]
[1722255398706,2.39667245,3382.4,3381.5,2.36576]
[1722255398907,2.39667245,3382.4,3381.6,0.473162]
[1722255399107,2.39667245,3382.4,3381.7,0.05913354]
[1722255400109,0.03148245,3382.4,3381.7,2.36566]
[1722255400335,0.03148245,3382.4,3381.8,2.42471336]
[1722255400709,5.67403183,3382.6,3381.8,2.42471336]
[1722255400710,2.36512,3382.5,3381.8,0.05913336]
[1722255400910,0.03144919,3382.3,3381.8,0.05913336]
[1722255401107,0.03151402,3382.4,3381.8,0.05913336]
[1722255401307,0.03126562,3382.2,3381.8,2.42468336]
[1722255401510,0.03138604,3382.3,3381.8,2.42468336]
[1722255401733,5.67403183,3382.6,3381.8,2.42468336]
[1722255402046,0.03101358,3382.2,3381.8,2.42468336]
[1722255402211,0.98831715,3382.5,3381.8,2.42468336]
[1722255402407,0.03094872,3382.1,3381.8,0.05913336]
[1722255402721,3.30898183,3382.6,3381.9,2.3355]
[1722255402921,0.30898183,3382.6,3382.0,0.05913036]
[1722255403218,2.36483,3382.9,3382.1,2.84140304]
[1722255403419,2.36483,3382.9,3381.9,4.70098]
[1722255403632,2.2699,3382.7,3381.6,9.65573]
[1722255403854,2.36532,3382.2,3381.6,7.29]
[1722255404578,2.36518,3382.4,3381.6,7.29]
[1722255405592,2.36525,3382.3,3381.6,7.29]
[1722255406337,2.36525,3382.3,3381.6,8.730264]
[1722255407639,2.3652,3382.4,3381.6,8.730264]
[1722255408356,2.36526,3382.3,3381.6,8.730264]
[1722255409000,2.36516,3382.5,3381.7,2.36566]
[1722255409155,1.84496791,3382.6,3381.9,2.36552]
[1722255409358,1.84496791,3382.7,3382.0,0.0591293]
[1722255409612,2.36483,3382.9,3382.1,4.67054]
[1722255410056,2.3649,3382.8,3382.1,4.67054]
[1722255410478,2.36481,3383.0,3382.1,4.67054]
[1722255410693,2.36481,3383.0,3382.1,4.72966243]
[1722255410857,5.36481,3383.0,3382.1,4.72966243]
[1722255411512,2.36485,3382.9,3382.1,4.72966243]
[1722255412501,5.36477,3383.0,3382.2,2.36531]
[1722255412705,2.36458,3383.3,3382.5,2.36509]
[1722255412901,2.36458,3383.3,3382.6,0.0591164]
[1722255414105,0.02933339,3383.2,3382.6,0.0591164]
[1722255415068,0.02933339,3383.2,3382.6,2.4241564]
[1722255415260,0.02933339,3383.2,3382.7,0.0591164]
[1722255415713,0.02933339,3383.2,3382.8,2.36489]
[1722255415890,5.36442,3383.5,3382.8,4.77439]
[1722255416104,0.02946302,3383.4,3382.8,2.4095]
[1722255417743,0.0624,3383.7,3383.6,7.18708]
[1722255417937,0.0624,3383.7,3383.6,4.82274]
[1722255418219,0.0624,3383.7,3383.6,7.2461706]
[1722255418427,0.0624,3383.7,3383.6,10.59282766]
[1722255419020,0.0624,3383.7,3383.6,13.59282766]
[1722255420637,0.0624,3383.7,3383.6,11.22848766]
[1722255420835,0.0624,3383.7,3383.6,11.16939706]
[1722255426254,0.0624,3383.7,3383.6,5.80505706]
[1722255426740,0.0624,3383.7,3383.6,5.86414986]
[1722255426899,0.0624,3383.7,3383.6,5.80505706]
[1722255427335,0.0624,3383.7,3383.6,8.16939706]
[1722255427637,0.0624,3383.7,3383.6,8.22848832]
[1722255430816,0.0624,3383.7,3383.6,11.22848832]
[1722255431542,0.0624,3383.7,3383.6,13.59282832]
[1722255431852,0.0624,3383.7,3383.6,11.22848832]
[1722255434240,0.0624,3383.7,3383.6,13.59282832]
[1722255436046,2.4449,3385.3,3384.1,7.30498]
[1722255436340,2.4402,3385.7,3384.1,15.994576]
[1722255437744,2.4402,3385.7,3384.1,18.358566]
[1722255437955,2.4402,3385.7,3385.2,2.36322]
[1722255438112,2.4402,3385.7,3385.3,0.0590711]
[1722255438302,2.4402,3385.7,3385.3,2.4222211]
[1722255439706,2.4402,3385.7,3385.3,0.0590711]
[1722255439923,2.36267,3386.0,3385.3,2.4222211]
[1722255440121,2.36267,3386.0,3385.3,2.36315]
[1722255440458,2.3661,3386.1,3385.4,0.0590663]
[1722255440748,5.23250039,3386.1,3385.3,2.36315]
[1722255441061,2.36292,3385.7,3384.9,2.36342]
[1722255441358,4.8354,3385.4,3384.8,7.29]
[1722255441507,2.36316,3385.3,3384.8,7.29]
[1722255441848,4.8354,3385.4,3384.8,7.29]
[1722255441849,2.4723,3385.4,3384.8,7.29]
[1722255442304,2.4723,3385.4,3384.9,0.05907644]
[1722255442833,0.236292,3385.6,3384.8,9.6535]
[1722255442834,2.599242,3385.6,3384.8,9.6535]
[1722255443032,2.36327,3385.2,3384.8,7.29]
[1722255443350,2.3631,3385.4,3384.9,0.05907817]
[1722255443797,2.3631,3385.4,3384.5,2.36367]
[1722255444231,2.36316,3385.3,3384.5,2.36367]
[1722255444452,2.36316,3385.3,3384.6,2.36364]
[1722255445793,2.36324,3385.2,3384.4,2.36372]
[1722255445928,2.36349,3384.9,3384.3,7.29]
[1722255446137,2.3635,3384.8,3384.3,7.29]
[1722255446671,2.3636,3384.7,3384.3,7.29]
[1722255446884,2.3636,3384.7,3383.9,9.65412]
[1722255447577,2.3636,3384.7,3384.0,2.36404]
[1722255448067,0.23635,3384.8,3383.9,7.29]
[1722255448068,2.36366,3384.6,3383.9,7.29]
[1722255448236,2.36351,3384.8,3383.9,7.29]
[1722255448758,2.36351,3384.8,3384.0,2.36406]
[1722255448926,2.36351,3384.8,3384.1,2.36398]
[1722255449433,2.36338,3385.0,3384.2,2.42295664]
[1722255449629,4.62545,3385.2,3384.3,2.42293534]
[1722255449630,0.698883,3384.9,3384.3,2.42293534]
[1722255449829,2.3633,3385.1,3384.3,2.42293534]
[1722255450048,4.62545,3385.2,3384.3,2.42293534]
[1722255450281,2.3633,3385.1,3384.3,2.42293534]
[1722255450929,2.3633,3385.1,3384.4,2.36378]
[1722255451130,2.3633,3385.1,3384.5,0.05908282]
[1722255452072,2.36337,3385.0,3384.5,0.05908282]
[1722255452371,2.3635,3384.8,3384.5,0.05908282]
[1722255452874,2.3635,3384.8,3383.9,9.6541]
[1722255452875,2.36358,3384.7,3383.9,9.65408]
[1722255453082,2.2622,3385.2,3383.9,8.7713929]
[1722255453229,2.36368,3384.6,3383.9,7.29]
[1722255453616,2.36406,3384.0,3383.9,7.29]
[1722255453729,2.36414,3383.9,3383.3,7.29]
[1722255454287,2.36399,3384.1,3383.3,7.29]
[1722255454432,2.36399,3384.1,3383.3,9.65454]
[1722255454627,2.36387,3384.3,3383.4,2.36445]
[1722255454849,2.36394,3384.2,3383.4,2.36445]
[1722255455279,2.36381,3384.4,3383.5,2.36441]
[1722255455454,2.36386,3384.3,3383.6,2.36434]
[1722255455645,2.36386,3384.3,3383.7,0.05909664]
[1722255457248,2.36386,3384.3,3383.5,0.05909664]
[1722255457571,2.36386,3384.3,3383.4,2.36445]
[1722255458260,4.67811,3384.5,3383.3,7.29]
[1722255458261,2.36379,3384.4,3383.3,7.29]
[1722255458463,2.36379,3384.4,3383.4,1.26100868]
[1722255458662,2.3144,3384.5,3383.6,2.36429]
[1722255458663,4.67811,3384.5,3383.6,2.36429]
[1722255458885,2.36379,3384.4,3383.7,0.0590954]
[1722255459735,2.36379,3384.4,3383.7,2.4233654]
[1722255459932,2.3144,3384.5,3383.8,0.05909504]
[1722255460238,4.67811,3384.5,3383.8,2.42327504]
[1722255461555,2.3144,3384.5,3383.8,2.42327504]
[1722255461813,2.3144,3384.5,3383.9,2.36412]
[1722255462099,2.3144,3384.5,3384.0,0.05909234]
[1722255462668,1.84787652,3384.7,3384.0,0.05909234]
[1722255462871,9.56907652,3384.8,3384.0,2.42312234]
[1722255463089,9.56907652,3384.8,3384.1,2.36399]
[1722255463090,6.76653225,3384.8,3384.1,2.36399]
[1722255463292,8.61440877,3384.8,3384.2,0.05909171]
[1722255464006,10.97791877,3384.8,3384.2,0.05909171]
[1722255464151,2.36359,3384.7,3384.2,0.05909171]
[1722255464358,2.36359,3384.7,3383.9,2.36412]
[1722255464359,2.36365,3384.6,3384.0,0.05909171]
[1722255464557,2.36372,3384.5,3383.7,9.65425]
[1722255464785,1.84787652,3384.5,3383.7,7.29]
[1722255464951,1.33414488,3384.7,3383.7,7.29]
[1722255464952,2.3639,3384.3,3383.7,7.29]
[1722255466761,2.36393,3384.2,3383.7,7.29]
[1722255466988,2.36393,3384.2,3383.4,1.201912]
[1722255466989,2.36401,3384.1,3383.3,9.65454]
[1722255467187,2.4911,3384.2,3383.4,0.05910032]
[1722255467390,2.4911,3384.2,3383.5,2.36435]
[1722255467605,2.4911,3384.2,3383.6,0.05910033]
[1722255468200,1.84900985,3384.4,3383.6,2.42340033]
[1722255468408,2.36376,3384.5,3383.8,2.3642]
[1722255468409,2.36372,3384.5,3383.8,2.3642]
[1722255468702,2.36372,3384.5,3383.9,0.05909471]
[1722255468703,4.21260295,3384.5,3383.9,0.05909471]
[1722255469172,1.84888295,3384.4,3383.9,0.05909471]
[1722255469507,2.36372,3384.5,3383.9,0.05909471]
[1722255469508,1.84888295,3384.5,3383.9,0.05909471]
[1722255470563,1.84888295,3384.4,3383.6,2.3643]
[1722255470909,1.84888295,3384.3,3383.6,2.36431]
[1722255471058,1.84888295,3384.4,3383.6,2.36431]
[1722255471260,1.40794331,3384.5,3383.6,2.36431]
[1722255471261,3.25682626,3384.5,3383.6,2.36431]
[1722255471485,3.25682626,3384.5,3383.9,2.36413]
[1722255471804,3.25664652,3384.5,3383.9,2.36413]
[1722255472168,1.40794331,3384.5,3383.9,2.36413]
[1722255472501,3.25667665,3384.5,3383.9,2.36413]
[1722255472702,1.84873334,3384.5,3384.0,0.05909445]
[1722255472858,1.84873334,3384.5,3383.9,2.36413]
[1722255473579,6.55869334,3384.6,3383.9,2.36413]
[1722255474371,6.55869334,3384.6,3383.9,2.42322447]
[1722255474576,1.84865366,3384.5,3383.9,2.42322447]
[1722255474828,1.8486719,3384.5,3383.7,2.36426]
[1722255475110,6.11786689,3384.6,3383.5,2.36441]
[1722255475111,1.8486719,3384.3,3383.5,2.36441]
[1722255475277,1.8486719,3384.3,3383.3,9.65454]
[1722255475278,5.22488117,3384.3,3383.6,2.36431]
[1722255475484,4.2125319,3384.3,3383.6,2.36431]
[1722255475677,2.36394,3384.2,3383.4,2.36443]
[1722255475867,2.36394,3384.2,3383.3,7.29]
[1722255476069,2.36394,3384.2,3383.5,2.36437]
[1722255476473,1.8486719,3384.4,3383.5,2.36437]
[1722255476474,4.2125019,3384.4,3383.5,2.36437]
[1722255476675,4.2125019,3384.4,3383.7,2.36427]
[1722255476983,2.36383,3384.4,3383.7,2.36427]
[1722255477722,1.8486719,3384.5,3383.7,2.36427]
[1722255477915,6.5586619,3384.6,3383.9,2.36412]
[1722255478084,4.70999,3384.6,3383.9,2.36412]
[1722255478276,6.55811585,3384.6,3383.9,2.36412]
[1722255478475,2.36372,3384.5,3383.7,7.14529]
[1722255478779,4.21184585,3384.5,3383.7,4.78102]
[1722255479095,2.36379,3384.4,3383.7,2.36422]
[1722255479838,4.21191585,3384.4,3383.5,2.3644]
[1722255479996,4.21191585,3384.4,3383.6,2.36434]
[1722255479997,5.18614654,3384.4,3383.6,2.36434]
[1722255480447,2.36387,3384.3,3383.6,2.36434]
[1722255480996,4.21168051,3384.3,3383.6,2.36434]
[1722255481309,1.84781051,3384.4,3383.8,2.3642]
[1722255481527,4.21158051,3384.5,3383.8,2.3642]
[1722255481716,4.21161076,3384.5,3383.8,2.3642]
[1722255481897,4.19414076,3384.6,3383.9,2.36412]
[1722255482203,4.19414076,3384.6,3384.0,2.36404]
[1722255482400,1.84784076,3384.7,3384.1,2.42307452]
[1722255482605,1.84784076,3384.8,3384.2,2.36392]
[1722255482825,6.52562076,3384.9,3384.2,2.36392]
[1722255483639,2.2767,3385.2,3384.3,0.05909055]
[1722255483848,1.84825877,3385.1,3384.3,0.05909055]
[1722255484057,1.84834395,3385.1,3384.4,2.36373]
[1722255484346,1.84834395,3385.0,3384.5,2.42279562]
[1722255484501,1.84834395,3385.0,3384.6,2.36364]
[1722255484705,1.84834395,3385.1,3384.6,2.36364]
[1722255485044,4.51955128,3385.4,3384.6,2.36364]
[1722255485045,1.84834395,3385.2,3384.6,2.36364]
[1722255485211,3.0991289,3385.4,3384.6,2.36364]
[1722255485212,1.84834395,3385.1,3384.6,2.36364]
[1722255485601,1.84834395,3385.0,3384.5,0.05908562]
[1722255486151,1.84834395,3384.9,3384.3,2.36385]
[1722255486326,4.21171395,3385.0,3384.3,2.36385]
[1722255486524,1.84834395,3384.9,3384.3,2.36385]
[1722255486822,1.85014403,3384.9,3384.3,2.36385]
[1722255487009,4.84674557,3384.9,3383.9,0.5051134]
[1722255487211,4.84674557,3384.9,3383.7,7.29]
[1722255487212,1.85014403,3384.5,3383.7,7.29]
[1722255487454,1.85014403,3384.3,3383.7,7.29]
[1722255487660,2.36373,3384.5,3383.7,7.29]
[1722255487661,1.85014403,3384.2,3383.7,7.29]
[1722255487949,5.57767154,3384.9,3383.5,2.36438]
[1722255487950,1.85014403,3384.1,3383.5,2.36438]
[1722255488454,1.85014403,3384.0,3383.4,2.3229]
[1722255488652,1.85014403,3384.0,3383.3,9.6545]
[1722255488852,1.85014403,3384.0,3383.4,2.36447]
[1722255489051,1.85014403,3384.0,3383.4,3.794264]
[1722255489265,1.85014403,3384.0,3383.5,2.3644]
[1722255489425,1.85014403,3384.0,3383.6,2.36434]
[1722255489624,1.85014403,3384.1,3383.8,2.36419]
[1722255490023,1.85066372,3384.1,3383.8,2.36419]
[1722255490367,1.85066372,3384.1,3383.9,0.05909847]
[1722255490660,1.85066372,3384.1,3383.8,2.36419]
[1722255490661,1.85066372,3384.1,3383.8,2.42328847]
[1722255490871,1.85066372,3384.2,3383.8,3.13157132]
[1722255491161,1.85066372,3384.2,3383.8,2.42328847]
[1722255491465,1.85066372,3384.3,3383.9,2.36413]
[1722255491780,1.85066372,3384.3,3384.0,0.05909488]
[1722255492058,1.85066372,3384.5,3384.0,2.42314488]
[1722255492480,1.85066372,3384.5,3384.2,2.36387]
[1722255492653,1.85066372,3384.7,3384.4,2.36378]
[1722255493053,1.85066372,3384.7,3384.5,2.36371]
[1722255493304,2.36327,3385.2,3384.5,2.36371]
[1722255493447,1.85153425,3384.7,3384.6,0.05908478]
[1722255493779,1.85153425,3384.7,3384.4,2.42286698]
[1722255493979,1.85153378,3384.7,3384.5,2.36367]
[1722255494182,1.85153378,3384.8,3384.5,2.36367]
[1722255494349,1.85153378,3384.8,3384.5,0.05908629]
[1722255494550,1.85153378,3384.8,3384.5,0.71205015]
[1722255494755,1.85153378,3384.8,3384.5,3.07575015]
[1722255494973,1.85153378,3384.8,3384.6,2.36358]
[1722255495285,1.85153378,3384.8,3384.7,2.36357]
[1722255495496,1.85153378,3384.9,3384.7,2.36357]
[1722255495795,1.85153378,3385.0,3384.8,2.3635]
[1722255496095,3.0,3385.5,3384.8,2.3635]
[1722255496241,1.85191514,3385.0,3384.8,2.3635]
[1722255496441,1.85191514,3385.0,3384.9,2.36343]
[1722255496442,1.85194134,3385.0,3384.9,2.36343]
[1722255496675,1.85194134,3385.1,3384.9,2.36343]
[1722255496889,1.85194134,3385.2,3384.9,2.36343]
[1722255497265,1.85194134,3385.1,3384.9,2.36343]
[1722255497449,2.16059823,3385.2,3384.7,2.36357]
[1722255497649,1.85195466,3385.0,3384.7,2.36357]
[1722255498878,1.85195466,3385.1,3384.8,2.36349]
[1722255499061,1.85195466,3385.1,3384.8,2.42257132]
[1722255499249,1.85195466,3385.1,3384.9,2.36343]
[1722255499451,1.85195466,3385.1,3385.0,2.36336]
[1722255499688,3.0,3385.5,3385.0,2.36336]
[1722255499990,1.85152937,3385.3,3385.0,2.36336]
[1722255500406,3.0,3385.4,3385.0,2.36336]
[1722255500709,1.85152911,3385.4,3385.1,2.36329]
[1722255500994,4.5240173,3385.7,3385.1,2.36329]
[1722255500995,1.85152911,3385.5,3385.1,2.36329]
[1722255501211,1.85152911,3385.5,3385.1,2.42235708]
[1722255501363,1.85152911,3385.5,3385.2,2.36321]
[1722255501544,1.85152911,3385.7,3385.2,2.36321]
[1722255501749,1.85152911,3385.7,3385.4,2.36304]
[1722255502065,1.85152911,3385.8,3385.5,2.36296]
[1722255503010,1.85152911,3385.8,3385.6,2.36294]
[1722255503172,4.85011708,3385.9,3385.6,2.36294]
[1722255503519,1.85011708,3385.7,3385.4,2.36305]
[1722255503822,4.85005771,3385.9,3385.5,2.363]
[1722255504013,1.85005771,3385.9,3385.5,2.363]
[1722255504305,1.85005771,3386.0,3385.7,2.36287]
[1722255504511,1.85005771,3386.1,3385.7,2.36287]
[1722255504737,5.35040922,3386.2,3385.7,2.36287]
[1722255505017,1.09915943,3386.1,3385.7,2.36287]
[1722255505513,1.09915943,3386.1,3385.5,2.42206821]
[1722255506509,1.09915943,3386.1,3385.5,0.05906821]
[1722255506711,5.31021121,3386.1,3385.4,2.36308]
[1722255506910,2.94761121,3386.1,3385.4,2.36308]
[1722255507469,0.91197078,3386.0,3385.3,7.29]
[1722255507684,2.2522,3385.9,3385.3,7.29]
[1722255507885,1.84845178,3385.8,3385.3,7.29]
[1722255508264,1.84845178,3385.7,3385.3,7.29]
[1722255508472,0.97380826,3385.7,3385.3,7.29]
[1722255508704,0.97380826,3385.7,3385.1,2.36325]
[1722255509275,3.33670826,3385.7,3384.9,14.48343]
[1722255509629,5.18373219,3385.7,3385.0,2.36335]
[1722255509830,5.18373219,3385.7,3384.8,9.65345]
[1722255509831,5.18986115,3385.6,3384.8,9.65345]
[1722255509969,5.18986115,3385.6,3384.9,2.36341]
[1722255510607,3.34281722,3385.6,3384.9,2.36341]
[1722255510814,2.36295,3385.6,3384.9,2.36341]
[1722255511813,4.72927,3385.5,3384.8,7.29]
[1722255512014,2.3631,3385.4,3384.5,9.6537]
[1722255512175,2.36318,3385.3,3384.5,7.29]
[1722255512371,4.21022393,3385.3,3384.5,7.29]
[1722255512596,2.36318,3385.3,3384.5,7.29]
[1722255512788,2.3662,3384.9,3384.5,7.29]
[1722255513006,2.3662,3384.9,3384.3,14.4838]
[1722255513007,2.3662,3384.9,3384.1,9.65394]
[1722255513326,2.3662,3384.9,3384.3,2.36381]
[1722255513627,1.84692923,3385.1,3384.2,0.236398]
[1722255513842,3.0,3385.4,3384.7,2.36353]
[1722255514037,1.84692923,3385.4,3384.7,2.36353]
[1722255514244,3.0,3385.4,3384.8,2.42254064]
[1722255514700,3.0,3385.5,3384.9,2.36343]
[1722255514900,5.36302,3385.5,3384.8,2.42258064]
[1722255515099,1.84692923,3385.4,3384.6,2.36364]
[1722255515295,1.8472842,3385.4,3384.6,2.42272066]
[1722255515830,1.84739694,3385.4,3384.6,2.42272066]
[1722255516015,1.34739694,3385.4,3384.8,2.3635]
[1722255516216,5.30400486,3385.5,3384.9,2.36343]
[1722255516587,3.95660792,3385.5,3384.9,2.36343]
[1722255516788,6.31961792,3385.5,3384.8,0.05908062]
[1722255517047,6.31961792,3385.5,3384.8,2.36349]
[1722255517231,2.3562,3385.6,3384.9,2.36342]
[1722255517527,5.3562,3385.6,3384.7,2.36352]
[1722255517687,2.36307,3385.5,3384.7,2.36352]
[1722255518187,5.3562,3385.6,3384.8,2.3635]
[1722255519031,7.71915,3385.6,3384.8,2.3635]
[1722255520434,7.71915,3385.6,3384.9,0.05907824]
[1722255521101,2.36302,3385.5,3384.7,2.36352]
[1722255521305,2.36302,3385.5,3384.6,7.29]
[1722255521306,2.36313,3385.4,3384.6,7.29]
[1722255521508,2.36316,3385.3,3384.6,9.65364]
[1722255522334,2.36316,3385.3,3384.6,11.080651]
[1722255523506,5.2504738,3385.5,3384.7,2.36357]
[1722255523709,4.21141737,3385.4,3384.7,2.36357]
[1722255523896,2.3631,3385.4,3384.7,2.36357]
[1722255524293,4.21141737,3385.4,3384.7,2.36357]
[1722255525236,4.21147868,3385.4,3384.7,2.36357]
[1722255525803,4.21171451,3385.4,3384.7,2.36357]
[1722255528815,4.21171451,3385.4,3384.8,0.05907836]
[1722255529037,7.71916,3385.6,3384.8,2.42252836]
[1722255529215,1.84854434,3385.4,3384.9,2.36341]
[1722255532147,5.36296,3385.6,3384.9,2.36341]
[1722255532148,1.84854434,3385.3,3384.9,2.36341]
[1722255532519,1.84865527,3385.4,3384.9,2.36341]
[1722255532903,6.61693094,3385.6,3384.9,2.36341]
[1722255533215,1.8487412,3385.4,3384.9,2.36341]
[1722255533416,1.8487412,3385.3,3384.9,2.36341]
[1722255533619,1.8487412,3385.4,3384.9,2.36341]
[1722255534157,1.8487412,3385.5,3385.0,2.42243838]
[1722255534315,4.82897908,3385.8,3385.0,2.42243838]
[1722255534316,1.8487412,3385.4,3385.1,2.4223282]
[1722255534520,1.8487412,3385.7,3385.3,2.36311]
[1722255534747,1.8487412,3385.7,3385.4,2.422151]
[1722255535042,4.51951474,3386.1,3385.4,2.422151]
[1722255535043,1.84995288,3385.8,3385.4,2.422151]